[Event "Titled Tuesday Blitz March 29 Late 2022"]
[White "Rorrer, Grayson"]
[Black "Hambleton, Aman"]
[WhiteFideId "30944996"]
[BlackFideId "2606577"]
[WhiteElo "2122"]
[BlackElo "2552"]
[Result "1-0"]
[Round "08"]
[TimeControl "180+1"]
[Date "2022.03.29"]
[WhiteClock "0:00:06"]
[BlackClock "0:00:01"]

1. e4 {[%clk 0:03:00]}  b6 {[%clk 0:02:54]} 2. d4 {[%clk 0:03:00]}  Bb7 {[%clk 0:02:55]} 3. Bd3 {[%clk 0:03:01]}  e6 {[%clk 0:02:55]} 4. c3 {[%clk 0:03:01]}  Nf6 {[%clk 0:02:50]} 5. Qe2 {[%clk 0:03:01]}  d5 {[%clk 0:02:48]} 6. e5 {[%clk 0:03:01]}  Ne4 {[%clk 0:02:48]} 7. Nd2 {[%clk 0:02:48]}  Nxd2 {[%clk 0:02:46]} 8. Bxd2 {[%clk 0:02:49]}  c5 {[%clk 0:02:46]} 9. f4 {[%clk 0:02:50]}  Qc8 {[%clk 0:02:45]} 10. Nf3 {[%clk 0:02:49]}  Ba6 {[%clk 0:02:45]} 11. O-O {[%clk 0:02:49]}  Bxd3 {[%clk 0:02:46]} 12. Qxd3 {[%clk 0:02:49]}  Qa6 {[%clk 0:02:46]} 13. Qc2 {[%clk 0:02:45]}  g6 {[%clk 0:02:21]} 14. Be3 {[%clk 0:02:42]}  h5 {[%clk 0:02:13]} 15. Ng5 {[%clk 0:02:39]}  Nc6 {[%clk 0:02:12]} 16. Rae1 {[%clk 0:02:03]}  Nd8 {[%clk 0:01:14]} 17. a3 {[%clk 0:01:54]}  Rc8 {[%clk 0:01:11]} 18. Qf2 {[%clk 0:01:13]}  Be7 {[%clk 0:01:07]} 19. Qg3 {[%clk 0:01:10]}  Qb5 {[%clk 0:01:02]} 20. Rf2 {[%clk 0:01:08]}  a5 {[%clk 0:00:59]} 21. f5 {[%clk 0:00:51]}  gxf5 {[%clk 0:00:55]} 22. Nh7 {[%clk 0:00:50]}  Kd7 {[%clk 0:00:36]} 23. Qg7 {[%clk 0:00:49]}  Re8 {[%clk 0:00:28]} 24. Bg5 {[%clk 0:00:34]}  Bxg5 {[%clk 0:00:22]} 25. Qxg5 {[%clk 0:00:34]}  Kc6 {[%clk 0:00:18]} 26. Nf6 {[%clk 0:00:31]}  Rf8 {[%clk 0:00:09]} 27. Qg7 {[%clk 0:00:25]}  Nb7 {[%clk 0:00:09]} 28. Nh7 {[%clk 0:00:25]}  Rh8 {[%clk 0:00:02]} 29. Qxf7 {[%clk 0:00:25]}  cxd4 {[%clk 0:00:01]} 30. cxd4 {[%clk 0:00:20]}  Qc4 {[%clk 0:00:01]} 31. Nf6 {[%clk 0:00:17]}  Kb5 {[%clk 0:00:01]} 32. Rd1 {[%clk 0:00:14]}  Ka6 {[%clk 0:00:01]} 33. Qxe6 {[%clk 0:00:13]}  Qb3 {[%clk 0:00:01]} 34. Rdf1 {[%clk 0:00:10]}  Rcd8 {[%clk 0:00:01]} 35. Qxf5 {[%clk 0:00:09]}  a4 {[%clk 0:00:02]} 36. Qf3 {[%clk 0:00:07]}  Na5 {[%clk 0:00:02]} 37. Qxb3 {[%clk 0:00:07]}  axb3 {[%clk 0:00:02]} 38. Rd1 {[%clk 0:00:07]}  Nc4 {[%clk 0:00:02]} 39. Rd3 {[%clk 0:00:08]}  h4 {[%clk 0:00:02]} 40. Rxb3 {[%clk 0:00:08]}  Rc8 {[%clk 0:00:02]} 41. Rc3 {[%clk 0:00:03]}  h3 {[%clk 0:00:03]} 42. gxh3 {[%clk 0:00:03]}  Rh6 {[%clk 0:00:03]} 43. Nxd5 {[%clk 0:00:03]}  Rg6+ {[%clk 0:00:03]} 44. Kf1 {[%clk 0:00:03]}  b5 {[%clk 0:00:03]} 45. Nb4+ {[%clk 0:00:04]}  Ka5 {[%clk 0:00:03]} 46. Nd3 {[%clk 0:00:04]}  Ne3+ {[%clk 0:00:03]} 47. Ke2 {[%clk 0:00:04]}  Rxc3 {[%clk 0:00:02]} 48. bxc3 {[%clk 0:00:05]}  Nd5 {[%clk 0:00:03]} 49. Kd2 {[%clk 0:00:06]}  Ka4 {[%clk 0:00:02]} 50. Nf4 {[%clk 0:00:03]}  Nxf4 {[%clk 0:00:02]} 51. Rxf4 {[%clk 0:00:04]}  Kxa3 {[%clk 0:00:03]} 52. Rf6 {[%clk 0:00:04]}  Rg2+ {[%clk 0:00:03]} 53. Kd3 {[%clk 0:00:04]}  Kb3 {[%clk 0:00:03]} 54. Rb6 {[%clk 0:00:03]}  Ka4 {[%clk 0:00:04]} 55. Ra6+ {[%clk 0:00:03]}  Kb3 {[%clk 0:00:04]} 56. Ra5 {[%clk 0:00:04]}  b4 {[%clk 0:00:04]} 57. Rb5 {[%clk 0:00:04]}  Rxh2 {[%clk 0:00:03]} 58. Rxb4+ {[%clk 0:00:05]}  Ka3 {[%clk 0:00:03]} 59. e6 {[%clk 0:00:05]}  Rxh3+ {[%clk 0:00:04]} 60. Kc4 {[%clk 0:00:06]}  Rh8 {[%clk 0:00:03]} 61. d5 {[%clk 0:00:06]}  Rc8+ {[%clk 0:00:02]} 62. Kd4 {[%clk 0:00:07]}  Rh8 {[%clk 0:00:01]} 63. d6 {[%clk 0:00:06]}  Rh4+ {[%clk 0:00:01]} 64. Kd5 {[%clk 0:00:06]}  Rh5+ {[%clk 0:00:02]} 65. Kc6 {[%clk 0:00:06]}  Rh3 {[%clk 0:00:02]} 66. Rc4 {[%clk 0:00:06]}  Kb3 {[%clk 0:00:02]} 67. Rc5 {[%clk 0:00:07]}  Rh6 {[%clk 0:00:02]} 68. e7 {[%clk 0:00:07]}  Kc2 {[%clk 0:00:02]} 69. e8=Q {[%clk 0:00:07]}  Rh2 {[%clk 0:00:02]} 70. Qe4+ {[%clk 0:00:07]}  Kb2 {[%clk 0:00:02]} 71. Rb5+ {[%clk 0:00:07]}  Kc1 {[%clk 0:00:01]} 72. Qb1+ {[%clk 0:00:06]} 1-0


[Site "https://www.chess.com"]

[Event "Titled Tuesday Blitz March 29 Late 2022"]
[White "Rosen, Eric"]
[Black "Stanisz, Patryk"]
[WhiteFideId "2032562"]
[BlackFideId "1123106"]
[WhiteElo "2362"]
[BlackElo "1876"]
[Result "1-0"]
[Round "08"]
[TimeControl "180+1"]
[Date "2022.03.30"]
[WhiteClock "0:02:25"]
[BlackClock "0:00:14"]

1. e4 {[%clk 0:03:00]}  c5 {[%clk 0:02:56]} 2. Nc3 {[%clk 0:03:00]}  Nc6 {[%clk 0:02:55]} 3. Bb5 {[%clk 0:02:58]}  g6 {[%clk 0:02:54]} 4. Bxc6 {[%clk 0:02:57]}  dxc6 {[%clk 0:02:54]} 5. f4 {[%clk 0:02:56]}  Bg7 {[%clk 0:02:51]} 6. Nf3 {[%clk 0:02:56]}  Nf6 {[%clk 0:02:50]} 7. O-O {[%clk 0:02:56]}  O-O {[%clk 0:02:50]} 8. d3 {[%clk 0:02:55]}  Ng4 {[%clk 0:02:21]} 9. Qe1 {[%clk 0:02:55]}  e5 {[%clk 0:02:12]} 10. h3 {[%clk 0:02:48]}  Nh6 {[%clk 0:01:43]} 11. fxe5 {[%clk 0:02:48]}  f5 {[%clk 0:01:42]} 12. exf6 {[%clk 0:02:34]}  Qxf6 {[%clk 0:01:37]} 13. Bg5 {[%clk 0:02:35]}  Qe6 {[%clk 0:01:30]} 14. Qh4 {[%clk 0:02:35]}  Nf7 {[%clk 0:01:27]} 15. Be7 {[%clk 0:02:31]}  Re8 {[%clk 0:01:22]} 16. Bxc5 {[%clk 0:02:32]}  b6 {[%clk 0:00:43]} 17. Be3 {[%clk 0:02:31]}  Ne5 {[%clk 0:00:39]} 18. Ng5 {[%clk 0:02:26]}  Nf3+ {[%clk 0:00:14]} 19. Rxf3 {[%clk 0:02:25]} 1-0


[Site "https://www.chess.com"]

[Event "Titled Tuesday Blitz March 29 Late 2022"]
[White "Sapunov, Evgeny"]
[Black "Gurevich, Dmitry"]
[WhiteFideId "4126661"]
[BlackFideId "2000407"]
[WhiteElo "2470"]
[BlackElo "2506"]
[Result "1/2-1/2"]
[Round "08"]
[TimeControl "180+1"]
[Date "2022.03.29"]
[WhiteClock "0:00:17"]
[BlackClock "0:00:13"]

1. c4 {[%clk 0:02:58]}  e6 {[%clk 0:02:59]} 2. Nf3 {[%clk 0:02:57]}  d5 {[%clk 0:02:59]} 3. d4 {[%clk 0:02:57]}  Nf6 {[%clk 0:02:59]} 4. Nc3 {[%clk 0:02:57]}  Be7 {[%clk 0:02:59]} 5. Bg5 {[%clk 0:02:57]}  h6 {[%clk 0:02:58]} 6. Bh4 {[%clk 0:02:57]}  O-O {[%clk 0:02:58]} 7. e3 {[%clk 0:02:58]}  b6 {[%clk 0:02:58]} 8. Qb3 {[%clk 0:02:57]}  Bb7 {[%clk 0:02:57]} 9. Bxf6 {[%clk 0:02:57]}  Bxf6 {[%clk 0:02:56]} 10. cxd5 {[%clk 0:02:58]}  exd5 {[%clk 0:02:56]} 11. Rd1 {[%clk 0:02:57]}  c6 {[%clk 0:02:49]} 12. Bd3 {[%clk 0:02:56]}  Qd6 {[%clk 0:02:48]} 13. O-O {[%clk 0:02:56]}  Nd7 {[%clk 0:02:46]} 14. Rfe1 {[%clk 0:02:55]}  Rfe8 {[%clk 0:02:46]} 15. Bb1 {[%clk 0:02:52]}  Nf8 {[%clk 0:02:37]} 16. e4 {[%clk 0:02:47]}  dxe4 {[%clk 0:02:37]} 17. Nxe4 {[%clk 0:02:47]}  Qd8 {[%clk 0:02:36]} 18. Ne5 {[%clk 0:02:39]}  Ne6 {[%clk 0:02:25]} 19. a3 {[%clk 0:02:27]}  Qe7 {[%clk 0:02:11]} 20. Ba2 {[%clk 0:02:17]}  Rad8 {[%clk 0:01:54]} 21. Nxf6+ {[%clk 0:01:51]}  Qxf6 {[%clk 0:01:53]} 22. Qe3 {[%clk 0:01:50]}  Qg5 {[%clk 0:01:37]} 23. g3 {[%clk 0:01:44]}  Qxe3 {[%clk 0:01:33]} 24. fxe3 {[%clk 0:01:44]}  c5 {[%clk 0:01:25]} 25. Rf1 {[%clk 0:01:35]}  Bd5 {[%clk 0:01:14]} 26. Nxf7 {[%clk 0:00:36]}  Bxa2 {[%clk 0:01:13]} 27. Nxd8 {[%clk 0:00:36]}  Rxd8 {[%clk 0:01:11]} 28. dxc5 {[%clk 0:00:36]}  Rxd1 {[%clk 0:01:11]} 29. Rxd1 {[%clk 0:00:36]}  Nxc5 {[%clk 0:01:11]} 30. Rd8+ {[%clk 0:00:36]}  Kf7 {[%clk 0:01:03]} 31. b4 {[%clk 0:00:35]}  Na4 {[%clk 0:00:57]} 32. Rd7+ {[%clk 0:00:32]}  Kf6 {[%clk 0:00:57]} 33. Rxa7 {[%clk 0:00:32]}  b5 {[%clk 0:00:55]} 34. e4 {[%clk 0:00:28]}  Nc3 {[%clk 0:00:47]} 35. e5+ {[%clk 0:00:28]}  Kg6 {[%clk 0:00:44]} 36. Kf2 {[%clk 0:00:26]}  Kf5 {[%clk 0:00:38]} 37. Rxg7 {[%clk 0:00:23]}  Kxe5 {[%clk 0:00:37]} 38. Rh7 {[%clk 0:00:22]}  Ne4+ {[%clk 0:00:34]} 39. Ke3 {[%clk 0:00:22]}  Nf6 {[%clk 0:00:32]} 40. Rb7 {[%clk 0:00:20]}  Bc4 {[%clk 0:00:31]} 41. h3 {[%clk 0:00:20]}  Nd5+ {[%clk 0:00:29]} 42. Kf3 {[%clk 0:00:20]}  Nxb4 {[%clk 0:00:26]} 43. Rxb5+ {[%clk 0:00:14]}  Bxb5 {[%clk 0:00:25]} 44. axb4 {[%clk 0:00:14]}  Bd7 {[%clk 0:00:21]} 45. g4 {[%clk 0:00:15]}  Kf6 {[%clk 0:00:18]} 46. Kf4 {[%clk 0:00:15]}  Kg6 {[%clk 0:00:18]} 47. h4 {[%clk 0:00:15]}  Bc8 {[%clk 0:00:17]} 48. g5 {[%clk 0:00:15]}  hxg5+ {[%clk 0:00:14]} 49. hxg5 {[%clk 0:00:15]}  Bd7 {[%clk 0:00:14]} 50. Ke5 {[%clk 0:00:15]}  Ba4 {[%clk 0:00:14]} 51. Kd6 {[%clk 0:00:16]}  Kxg5 {[%clk 0:00:14]} 52. Kc5 {[%clk 0:00:16]}  Kf5 {[%clk 0:00:13]} 53. b5 {[%clk 0:00:17]}  Bxb5 {[%clk 0:00:13]} 1/2-1/2


[Site "https://www.chess.com"]

[Event "Titled Tuesday Blitz March 29 Late 2022"]
[White "Sarana, Alexey"]
[Black "Vasquez Schroeder, Rodrigo"]
[WhiteFideId "24133795"]
[BlackFideId "3400042"]
[WhiteElo "2666"]
[BlackElo "2561"]
[Result "1-0"]
[Round "08"]
[TimeControl "180+1"]
[Date "2022.03.29"]
[WhiteClock "0:00:09"]
[BlackClock "0:00:15"]

1. d4 {[%clk 0:03:00]}  Nf6 {[%clk 0:02:57]} 2. c4 {[%clk 0:03:01]}  e6 {[%clk 0:02:57]} 3. Nc3 {[%clk 0:03:02]}  Bb4 {[%clk 0:02:57]} 4. e3 {[%clk 0:03:03]}  O-O {[%clk 0:02:57]} 5. Bd3 {[%clk 0:03:03]}  d5 {[%clk 0:02:56]} 6. a3 {[%clk 0:03:04]}  Bxc3+ {[%clk 0:02:45]} 7. bxc3 {[%clk 0:03:04]}  c5 {[%clk 0:02:45]} 8. cxd5 {[%clk 0:03:04]}  exd5 {[%clk 0:02:37]} 9. Ne2 {[%clk 0:03:04]}  b6 {[%clk 0:02:37]} 10. O-O {[%clk 0:03:04]}  Ba6 {[%clk 0:02:37]} 11. Ng3 {[%clk 0:03:04]}  Re8 {[%clk 0:02:36]} 12. f3 {[%clk 0:03:04]}  Bxd3 {[%clk 0:02:33]} 13. Qxd3 {[%clk 0:03:04]}  Nc6 {[%clk 0:02:32]} 14. Bb2 {[%clk 0:03:05]}  Qd7 {[%clk 0:02:27]} 15. e4 {[%clk 0:03:02]}  dxe4 {[%clk 0:02:11]} 16. fxe4 {[%clk 0:03:02]}  Rad8 {[%clk 0:02:10]} 17. Rad1 {[%clk 0:03:00]}  Qg4 {[%clk 0:01:54]} 18. Qb5 {[%clk 0:02:36]}  Na5 {[%clk 0:01:51]} 19. e5 {[%clk 0:02:25]}  Nd5 {[%clk 0:01:48]} 20. Qd3 {[%clk 0:02:21]}  cxd4 {[%clk 0:01:41]} 21. cxd4 {[%clk 0:02:21]}  Rc8 {[%clk 0:01:23]} 22. h3 {[%clk 0:02:20]}  Qg6 {[%clk 0:01:22]} 23. Nf5 {[%clk 0:02:20]}  Nc4 {[%clk 0:01:21]} 24. Bc1 {[%clk 0:02:19]}  b5 {[%clk 0:01:16]} 25. Rf3 {[%clk 0:02:19]}  Ne7 {[%clk 0:01:11]} 26. Rdf1 {[%clk 0:01:30]}  Nxf5 {[%clk 0:01:11]} 27. Rxf5 {[%clk 0:01:31]}  Rc7 {[%clk 0:01:11]} 28. Qf3 {[%clk 0:01:24]}  Rd7 {[%clk 0:01:05]} 29. Rg5 {[%clk 0:01:02]}  Qb6 {[%clk 0:01:04]} 30. Rxg7+ {[%clk 0:00:57]}  Kxg7 {[%clk 0:01:01]} 31. Qg4+ {[%clk 0:00:56]}  Kh8 {[%clk 0:00:41]} 32. Qxd7 {[%clk 0:00:57]}  Rd8 {[%clk 0:00:39]} 33. Qxf7 {[%clk 0:00:57]}  Nxe5 {[%clk 0:00:39]} 34. Qe7 {[%clk 0:00:42]}  Qxd4+ {[%clk 0:00:39]} 35. Kh1 {[%clk 0:00:42]}  Ng6 {[%clk 0:00:40]} 36. Qg5 {[%clk 0:00:37]}  Kg8 {[%clk 0:00:39]} 37. Bb2 {[%clk 0:00:34]}  Qd6 {[%clk 0:00:39]} 38. Qh6 {[%clk 0:00:32]}  Qd7 {[%clk 0:00:38]} 39. Qe3 {[%clk 0:00:23]}  Rf8 {[%clk 0:00:37]} 40. Re1 {[%clk 0:00:22]}  Qd5 {[%clk 0:00:33]} 41. Qc3 {[%clk 0:00:21]}  Qf7 {[%clk 0:00:31]} 42. Qd4 {[%clk 0:00:20]}  a6 {[%clk 0:00:30]} 43. Re4 {[%clk 0:00:19]}  h5 {[%clk 0:00:28]} 44. Re1 {[%clk 0:00:16]}  Kh7 {[%clk 0:00:28]} 45. Kh2 {[%clk 0:00:15]}  Qf4+ {[%clk 0:00:28]} 46. Qxf4 {[%clk 0:00:15]}  Rxf4 {[%clk 0:00:28]} 47. Re6 {[%clk 0:00:15]}  Rf2 {[%clk 0:00:28]} 48. Bd4 {[%clk 0:00:15]}  Rd2 {[%clk 0:00:28]} 49. Be3 {[%clk 0:00:15]}  Re2 {[%clk 0:00:28]} 50. Kg3 {[%clk 0:00:14]}  h4+ {[%clk 0:00:27]} 51. Kf3 {[%clk 0:00:14]}  Re1 {[%clk 0:00:28]} 52. Kf2 {[%clk 0:00:10]}  Ra1 {[%clk 0:00:27]} 53. Rxa6 {[%clk 0:00:10]}  Ra2+ {[%clk 0:00:26]} 54. Kf3 {[%clk 0:00:10]}  Ne5+ {[%clk 0:00:27]} 55. Ke4 {[%clk 0:00:11]}  Nc4 {[%clk 0:00:28]} 56. Rh6+ {[%clk 0:00:05]}  Kg7 {[%clk 0:00:27]} 57. Rxh4 {[%clk 0:00:05]}  Rxg2 {[%clk 0:00:20]} 58. Bc5 {[%clk 0:00:05]}  Kf6 {[%clk 0:00:19]} 59. Kd5 {[%clk 0:00:05]}  Rg5+ {[%clk 0:00:18]} 60. Kc6 {[%clk 0:00:05]}  Ne5+ {[%clk 0:00:19]} 61. Kxb5 {[%clk 0:00:05]}  Nd3 {[%clk 0:00:17]} 62. Rc4 {[%clk 0:00:05]}  Rh5 {[%clk 0:00:17]} 63. h4 {[%clk 0:00:05]}  Ke6 {[%clk 0:00:18]} 64. a4 {[%clk 0:00:05]}  Nxc5 {[%clk 0:00:16]} 65. Rxc5 {[%clk 0:00:06]}  Rxh4 {[%clk 0:00:16]} 66. a5 {[%clk 0:00:06]}  Rh3 {[%clk 0:00:17]} 67. Kc6 {[%clk 0:00:06]}  Rb3 {[%clk 0:00:17]} 68. a6 {[%clk 0:00:06]}  Ra3 {[%clk 0:00:17]} 69. Kb7 {[%clk 0:00:06]}  Kd6 {[%clk 0:00:18]} 70. Rc6+ {[%clk 0:00:06]}  Kd7 {[%clk 0:00:18]} 71. Rb6 {[%clk 0:00:07]}  Rc3 {[%clk 0:00:17]} 72. a7 {[%clk 0:00:08]}  Rc7+ {[%clk 0:00:18]} 73. Ka6 {[%clk 0:00:08]}  Rc8 {[%clk 0:00:16]} 74. Rb7+ {[%clk 0:00:09]}  Kc6 {[%clk 0:00:15]} 75. Rb8 {[%clk 0:00:09]} 1-0


[Site "https://www.chess.com"]

[Event "Titled Tuesday Blitz March 29 Late 2022"]
[White "Srinath, Rao S.V."]
[Black "Fathy, Elameir"]
[WhiteFideId "5028876"]
[BlackFideId "10600396"]
[WhiteElo "2181"]
[BlackElo "2311"]
[Result "0-1"]
[Round "08"]
[TimeControl "180+1"]
[Date "2022.03.30"]
[WhiteClock "0:01:47"]
[BlackClock "0:01:10"]

1. Nf3 {[%clk 0:03:00]}  d5 {[%clk 0:02:59]} 2. g3 {[%clk 0:03:01]}  Bf5 {[%clk 0:02:58]} 3. Bg2 {[%clk 0:03:02]}  e6 {[%clk 0:02:59]} 4. O-O {[%clk 0:03:02]}  c6 {[%clk 0:02:59]} 5. d3 {[%clk 0:03:02]}  h6 {[%clk 0:03:00]} 6. c4 {[%clk 0:03:02]}  dxc4 {[%clk 0:02:59]} 7. dxc4 {[%clk 0:03:02]}  Qxd1 {[%clk 0:03:00]} 8. Rxd1 {[%clk 0:03:02]}  Nf6 {[%clk 0:02:56]} 9. b3 {[%clk 0:03:01]}  Be7 {[%clk 0:02:54]} 10. Bb2 {[%clk 0:03:01]}  Nbd7 {[%clk 0:02:50]} 11. Nc3 {[%clk 0:03:00]}  O-O {[%clk 0:02:47]} 12. Nd4 {[%clk 0:03:00]}  Bg6 {[%clk 0:02:41]} 13. a3 {[%clk 0:02:53]}  Rfd8 {[%clk 0:02:35]} 14. b4 {[%clk 0:02:52]}  Ne5 {[%clk 0:02:28]} 15. c5 {[%clk 0:02:49]}  Nc4 {[%clk 0:02:18]} 16. Bc1 {[%clk 0:02:44]}  Nd5 {[%clk 0:02:02]} 17. Nxd5 {[%clk 0:02:42]}  exd5 {[%clk 0:02:02]} 18. e3 {[%clk 0:02:33]}  a5 {[%clk 0:01:55]} 19. Bf1 {[%clk 0:02:07]}  axb4 {[%clk 0:01:49]} 20. Bxc4 {[%clk 0:02:06]}  dxc4 {[%clk 0:01:50]} 21. Bd2 {[%clk 0:01:53]}  bxa3 {[%clk 0:01:21]} 22. Bb4 {[%clk 0:01:50]}  a2 {[%clk 0:01:15]} 23. Rdc1 {[%clk 0:01:47]}  Bd3 {[%clk 0:01:10]} 0-1


[Site "https://www.chess.com"]

[Event "Titled Tuesday Blitz March 29 Late 2022"]
[White "Sztokbant, Bernardo Vainzoff"]
[Black "Lewtak, Damian"]
[WhiteFideId "2115956"]
[BlackFideId "1141724"]
[WhiteElo "2237"]
[BlackElo "2362"]
[Result "1/2-1/2"]
[Round "08"]
[TimeControl "180+1"]
[Date "2022.03.29"]
[WhiteClock "0:00:04"]
[BlackClock "0:00:06"]

1. e4 {[%clk 0:03:00]}  c5 {[%clk 0:02:58]} 2. Nf3 {[%clk 0:03:00]}  d6 {[%clk 0:02:58]} 3. d4 {[%clk 0:03:00]}  cxd4 {[%clk 0:02:59]} 4. Qxd4 {[%clk 0:03:00]}  Nf6 {[%clk 0:02:58]} 5. Nc3 {[%clk 0:03:00]}  Nc6 {[%clk 0:02:58]} 6. Bb5 {[%clk 0:03:00]}  Bd7 {[%clk 0:02:57]} 7. Bxc6 {[%clk 0:03:00]}  Bxc6 {[%clk 0:02:58]} 8. O-O {[%clk 0:03:00]}  e5 {[%clk 0:02:54]} 9. Qd3 {[%clk 0:03:00]}  h6 {[%clk 0:02:54]} 10. b3 {[%clk 0:02:58]}  Be7 {[%clk 0:02:54]} 11. a4 {[%clk 0:02:58]}  O-O {[%clk 0:02:54]} 12. Ba3 {[%clk 0:02:58]}  Ne8 {[%clk 0:02:54]} 13. Rfd1 {[%clk 0:02:53]}  Qc7 {[%clk 0:02:53]} 14. Nd2 {[%clk 0:02:50]}  Nf6 {[%clk 0:02:39]} 15. Nc4 {[%clk 0:02:48]}  Nxe4 {[%clk 0:02:29]} 16. Nxe4 {[%clk 0:02:15]}  d5 {[%clk 0:02:29]} 17. Bxe7 {[%clk 0:01:57]}  Qxe7 {[%clk 0:02:28]} 18. Nxe5 {[%clk 0:01:30]}  dxe4 {[%clk 0:02:02]} 19. Nxc6 {[%clk 0:01:18]}  bxc6 {[%clk 0:02:01]} 20. Qd7 {[%clk 0:01:16]}  Qf6 {[%clk 0:01:59]} 21. Qd4 {[%clk 0:01:05]}  Qf5 {[%clk 0:01:50]} 22. Qc4 {[%clk 0:01:01]}  Rac8 {[%clk 0:01:34]} 23. Rd4 {[%clk 0:00:58]}  Rfe8 {[%clk 0:01:14]} 24. Re1 {[%clk 0:00:56]}  e3 {[%clk 0:01:14]} 25. fxe3 {[%clk 0:00:53]}  Rc7 {[%clk 0:01:09]} 26. Rf4 {[%clk 0:00:51]}  Qg6 {[%clk 0:01:05]} 27. Qc3 {[%clk 0:00:36]}  Rce7 {[%clk 0:01:04]} 28. h3 {[%clk 0:00:36]}  Qd6 {[%clk 0:01:01]} 29. Rg4 {[%clk 0:00:33]}  f5 {[%clk 0:00:58]} 30. Rc4 {[%clk 0:00:28]}  Re6 {[%clk 0:00:53]} 31. Qd3 {[%clk 0:00:25]}  Qxd3 {[%clk 0:00:41]} 32. cxd3 {[%clk 0:00:25]}  Rxe3 {[%clk 0:00:42]} 33. Rxe3 {[%clk 0:00:26]}  Rxe3 {[%clk 0:00:43]} 34. Rc3 {[%clk 0:00:17]}  Re6 {[%clk 0:00:32]} 35. Kf2 {[%clk 0:00:17]}  Kf7 {[%clk 0:00:31]} 36. Rc5 {[%clk 0:00:16]}  Kf6 {[%clk 0:00:32]} 37. b4 {[%clk 0:00:17]}  g5 {[%clk 0:00:28]} 38. Ra5 {[%clk 0:00:16]}  Rd6 {[%clk 0:00:23]} 39. Ke2 {[%clk 0:00:17]}  Rd4 {[%clk 0:00:23]} 40. Rxa7 {[%clk 0:00:10]}  Rxb4 {[%clk 0:00:20]} 41. Ra6 {[%clk 0:00:11]}  Ke5 {[%clk 0:00:19]} 42. Rxc6 {[%clk 0:00:09]}  Rxa4 {[%clk 0:00:17]} 43. Rxh6 {[%clk 0:00:09]}  Kf4 {[%clk 0:00:15]} 44. Rf6 {[%clk 0:00:03]}  Ra2+ {[%clk 0:00:14]} 45. Kf1 {[%clk 0:00:03]}  Ra3 {[%clk 0:00:15]} 46. d4 {[%clk 0:00:02]}  Rd3 {[%clk 0:00:14]} 47. Rd6 {[%clk 0:00:02]}  Kg3 {[%clk 0:00:11]} 48. Rd5 {[%clk 0:00:02]}  Kf4 {[%clk 0:00:08]} 49. Ke2 {[%clk 0:00:02]}  Ra3 {[%clk 0:00:08]} 50. Kf1 {[%clk 0:00:02]}  Ra2 {[%clk 0:00:05]} 51. Kg1 {[%clk 0:00:02]}  Kg3 {[%clk 0:00:05]} 52. Kf1 {[%clk 0:00:02]}  Ra1+ {[%clk 0:00:05]} 53. Ke2 {[%clk 0:00:03]}  Kf4 {[%clk 0:00:05]} 54. Rd8 {[%clk 0:00:01]}  Ra2+ {[%clk 0:00:06]} 55. Kd3 {[%clk 0:00:01]}  Rxg2 {[%clk 0:00:06]} 56. d5 {[%clk 0:00:01]}  Rg1 {[%clk 0:00:06]} 57. Kc4 {[%clk 0:00:01]}  Rd1 {[%clk 0:00:06]} 58. d6 {[%clk 0:00:01]}  Ke5 {[%clk 0:00:06]} 59. Kc5 {[%clk 0:00:01]}  f4 {[%clk 0:00:07]} 60. Re8+ {[%clk 0:00:02]}  Kf5 {[%clk 0:00:04]} 61. Kc6 {[%clk 0:00:03]}  f3 {[%clk 0:00:05]} 62. Rf8+ {[%clk 0:00:02]}  Ke4 {[%clk 0:00:05]} 63. d7 {[%clk 0:00:02]}  Ke3 {[%clk 0:00:05]} 64. Kc7 {[%clk 0:00:01]}  f2 {[%clk 0:00:05]} 65. d8=Q {[%clk 0:00:01]}  Rxd8 {[%clk 0:00:05]} 66. Kxd8 {[%clk 0:00:02]}  Ke2 {[%clk 0:00:05]} 67. Ke7 {[%clk 0:00:02]}  f1=Q {[%clk 0:00:04]} 68. Rxf1 {[%clk 0:00:03]}  Kxf1 {[%clk 0:00:05]} 69. Kf6 {[%clk 0:00:04]}  Kg2 {[%clk 0:00:06]} 70. Kxg5 {[%clk 0:00:04]}  Kxh3 {[%clk 0:00:06]} 1/2-1/2


[Site "https://www.chess.com"]

[Event "Titled Tuesday Blitz March 29 Late 2022"]
[White "Taichman, Ori"]
[Black "Tarigan, Gilbert Elroy"]
[WhiteFideId "2804069"]
[BlackFideId "7108133"]
[WhiteElo "2227"]
[BlackElo "1908"]
[Result "1-0"]
[Round "08"]
[TimeControl "180+1"]
[Date "2022.03.29"]
[WhiteClock "0:01:59"]
[BlackClock "0:00:22"]

1. e4 {[%clk 0:02:55]}  Nc6 {[%clk 0:02:54]} 2. Nf3 {[%clk 0:02:53]}  e5 {[%clk 0:02:51]} 3. Bb5 {[%clk 0:02:53]}  a6 {[%clk 0:02:49]} 4. Bxc6 {[%clk 0:02:51]}  dxc6 {[%clk 0:02:50]} 5. O-O {[%clk 0:02:52]}  Bg4 {[%clk 0:02:44]} 6. h3 {[%clk 0:02:52]}  h5 {[%clk 0:02:43]} 7. d3 {[%clk 0:02:52]}  Qf6 {[%clk 0:02:40]} 8. Nbd2 {[%clk 0:02:53]}  Bc5 {[%clk 0:02:14]} 9. Nc4 {[%clk 0:02:51]}  Bxf3 {[%clk 0:01:59]} 10. Qxf3 {[%clk 0:02:50]}  Qxf3 {[%clk 0:01:59]} 11. gxf3 {[%clk 0:02:50]}  f6 {[%clk 0:01:58]} 12. f4 {[%clk 0:02:50]}  exf4 {[%clk 0:01:58]} 13. Bxf4 {[%clk 0:02:51]}  O-O-O {[%clk 0:01:58]} 14. Kg2 {[%clk 0:02:49]}  Ne7 {[%clk 0:01:56]} 15. Be3 {[%clk 0:02:48]}  Bxe3 {[%clk 0:01:50]} 16. Nxe3 {[%clk 0:02:48]}  f5 {[%clk 0:01:40]} 17. Rad1 {[%clk 0:02:23]}  fxe4 {[%clk 0:01:29]} 18. dxe4 {[%clk 0:02:24]}  g5 {[%clk 0:01:29]} 19. Rxd8+ {[%clk 0:02:17]}  Rxd8 {[%clk 0:01:30]} 20. Rd1 {[%clk 0:02:18]}  Re8 {[%clk 0:01:27]} 21. h4 {[%clk 0:02:14]}  g4 {[%clk 0:01:18]} 22. f3 {[%clk 0:02:14]}  gxf3+ {[%clk 0:01:15]} 23. Kxf3 {[%clk 0:02:15]}  Ng6 {[%clk 0:01:16]} 24. Nf5 {[%clk 0:02:15]}  Rf8 {[%clk 0:00:53]} 25. Ke3 {[%clk 0:02:10]}  b5 {[%clk 0:00:48]} 26. Rg1 {[%clk 0:02:07]}  Ne5 {[%clk 0:00:47]} 27. Rg5 {[%clk 0:02:04]}  Rh8 {[%clk 0:00:28]} 28. Ne7+ {[%clk 0:02:04]}  Kd7 {[%clk 0:00:23]} 29. Rxe5 {[%clk 0:02:04]}  Kd6 {[%clk 0:00:22]} 30. Ng6 {[%clk 0:01:59]}  Rg8 {[%clk 0:00:22]} 31. Rg5 {[%clk 0:01:59]} 1-0


[Site "https://www.chess.com"]